bitfinex/quotes_ETHUSD_20250523
["timestamp","ask_amount","ask_price","bid_price","bid_amount"]
[1748000260698,5.3540501,2641.5,2641.0,8.0]
[1748000260900,3.78640871,2641.1,2640.1,8.49124847]
[1748000261227,1.5682,2641.5,2640.6,8.0]
[1748000261525,1.5682,2641.5,2640.5,3.78714623]
[1748000261526,3.78596175,2641.4,2640.9,3.78654679]
[1748000261715,5.35400242,2641.5,2641.1,8.0]
[1748000261899,2.53715932,2641.5,2641.1,8.0]
[1748000262104,1.5682,2641.5,2641.1,8.0]
[1748000262409,3.7860794,2641.3,2641.1,8.0]
[1748000262723,3.78587112,2641.4,2641.1,8.0]
[1748000262933,1.5682,2641.5,2641.1,8.0]
[1748000263134,1.5682,2641.5,2641.0,17.766]
[1748000263135,5.35401238,2641.5,2641.2,17.766]
[1748000263328,3.78595935,2641.4,2641.2,17.766]
[1748000264197,0.55,2642.0,2641.2,17.766]
[1748000264198,1.5646,2641.8,2641.2,17.766]
[1748000264398,3.78544989,2641.7,2641.2,21.55211302]
[1748000264695,1.5646,2641.8,2641.3,3.7859272]
[1748000264898,3.78515462,2641.9,2641.2,17.766]
[1748000265126,3.78552076,2641.7,2641.2,21.55214314]
[1748000265305,3.78535011,2641.8,2641.3,3.78596192]
[1748000265506,3.78545226,2641.7,2641.2,21.55209182]
[1748000265700,3.78545226,2641.7,2641.3,3.78600545]
[1748000265905,0.75705976,2641.8,2641.4,3.78583608]
[1748000266133,3.78507813,2642.0,2641.5,3.78566071]
[1748000266310,3.78524106,2641.9,2641.4,3.78584628]
[1748000267229,3.78515556,2641.9,2641.3,3.78589294]
[1748000267432,1.5646,2642.1,2641.5,11.348]
[1748000267632,4.3823566,2642.0,2641.1,3.78629852]
[1748000267833,3.78566249,2641.6,2641.4,11.347]
[1748000268533,3.78552001,2641.7,2641.4,11.347]
[1748000268738,0.59469566,2641.9,2641.4,11.347]
[1748000268899,3.78501135,2642.0,2641.5,29.109]
[1748000269233,3.78542897,2641.8,2641.6,17.762]
[1748000269441,3.78517963,2641.9,2641.5,17.762]
[1748000269644,3.78537677,2641.8,2641.5,17.762]
[1748000269851,4.59742415,2641.8,2641.5,17.762]
[1748000270024,0.81205564,2641.8,2641.5,17.762]
[1748000270224,0.55,2642.0,2641.5,17.762]
[1748000270419,3.78522125,2641.9,2641.5,17.762]
[1748000270846,3.7850827,2642.0,2641.6,3.78557369]
[1748000271212,8.0,2642.8,2641.7,3.78542124]
[1748000271524,3.78482941,2642.2,2641.7,3.78537441]
[1748000271730,3.78487697,2642.1,2641.6,3.78550512]
[1748000271949,4.54173362,2642.2,2641.5,21.54766554]
[1748000272114,3.78489219,2642.1,2641.5,21.54767263]
[1748000272313,4.54172883,2642.2,2641.5,17.762]
[1748000272511,4.33434822,2642.5,2641.9,3.78508169]
[1748000272734,4.33434822,2642.5,2641.5,17.762]
[1748000272735,3.78464445,2642.3,2641.8,3.78520164]
[1748000273144,3.78474977,2642.2,2641.6,3.78555303]
[1748000273450,3.78509427,2642.0,2641.7,17.761]
[1748000274246,3.78518979,2641.9,2641.7,17.761]
[1748000274446,4.54225767,2641.9,2641.4,3.78583696]
[1748000274643,0.75702841,2641.9,2641.8,17.695]
[1748000274851,3.78487154,2642.1,2641.8,17.695]
[1748000275012,3.7850769,2642.0,2641.8,17.695]
[1748000275213,3.7850769,2642.0,2641.9,17.695]
[1748000275434,3.78492809,2642.1,2641.9,17.695]
[1748000275634,3.78474214,2642.2,2641.9,17.695]
[1748000275834,0.43347421,2642.2,2641.9,17.695]
[1748000276119,3.78472613,2642.2,2641.9,17.695]
[1748000278441,3.78488554,2642.1,2641.9,17.695]
[1748000278631,3.78478932,2642.2,2641.9,17.695]
[1748000279239,3.78465392,2642.3,2641.9,17.695]
[1748000279444,3.7847351,2642.2,2641.9,17.695]
[1748000279834,3.78465585,2642.3,2641.9,17.695]
[1748000280247,3.78444057,2642.4,2641.9,17.695]
[1748000280561,0.55,2642.3,2641.0,20.12830977]
[1748000280758,3.78512207,2642.0,2641.2,17.693]
[1748000280945,1.5999,2642.5,2641.2,17.693]
[1748000281121,3.7847427,2642.2,2641.6,3.78551586]
[1748000281471,3.78494112,2642.1,2641.2,21.47912245]
[1748000281637,0.55,2642.4,2641.2,17.693]
[1748000281832,1.5999,2642.5,2641.2,17.693]
[1748000282142,3.78451195,2642.4,2641.3,11.344]
[1748000282326,1.5999,2642.5,2642.0,3.78499939]
[1748000282524,3.78450927,2642.4,2642.1,17.692]
[1748000282756,4.70131799,2642.4,2642.1,17.692]
[1748000283353,3.78423851,2642.6,2642.1,21.47672521]
[1748000283556,4.33407798,2642.7,2642.1,21.47680091]
[1748000283763,0.55,2642.7,2642.1,21.47678377]
[1748000283918,0.55,2642.7,2642.3,3.78455492]
[1748000284322,1.5232,2643.1,2642.2,3.78464046]
[1748000284554,3.78408576,2642.7,2642.3,29.035]
[1748000284755,4.54088476,2642.7,2642.3,29.035]
[1748000285543,3.78415197,2642.6,2642.4,29.033]
[1748000285743,4.33426256,2642.6,2642.5,17.69]
[1748000285942,3.78443838,2642.4,2642.3,11.342]
[1748000286170,3.78443838,2642.4,2642.3,29.032]
[1748000286365,3.78450868,2642.4,2642.0,16.334]
[1748000286674,3.78450868,2642.4,2642.3,17.69]
[1748000286876,3.7843782,2642.5,2642.3,17.69]
[1748000287087,4.82770601,2642.5,2642.3,17.69]
[1748000287388,0.756799,2642.7,2642.3,21.47446177]
[1748000287590,3.78392288,2642.8,2642.3,21.47446177]
[1748000287788,3.78404273,2642.7,2642.3,17.69]
[1748000288313,3.78443879,2642.4,2642.0,16.334]
[1748000288449,0.55,2642.8,2642.0,16.334]
[1748000288450,0.55,2642.8,2642.1,17.689]
[1748000288772,4.33392706,2642.8,2642.2,3.78468913]
[1748000289067,3.78417055,2642.6,2642.1,21.47380441]
[1748000289272,4.33393693,2642.8,2642.3,3.78457243]
[1748000289477,5.40528897,2642.9,2642.4,3.7844272]
[1748000289682,3.78394205,2642.8,2642.3,3.78451879]
[1748000290363,3.7837601,2642.9,2642.3,3.7845747]
[1748000290564,3.78390759,2642.8,2642.3,3.78451103]
[1748000290762,3.78414183,2642.7,2642.2,15.12669802]
[1748000291075,3.78407835,2642.7,2642.2,15.1266313]
[1748000291280,3.78385927,2642.9,2642.2,11.342]
[1748000291576,1.5185,2643.4,2642.2,11.342]
[1748000291753,0.55,2643.2,2642.2,3.78459965]
[1748000291953,3.7839121,2642.8,2642.3,32.81352293]
[1748000292483,3.78345537,2643.1,2642.6,3.78408172]
[1748000292877,3.78382249,2642.9,2642.4,3.78443242]
[1748000293380,3.78382249,2642.9,2642.5,3.78428826]
[1748000293584,3.78382249,2642.9,2642.4,3.78443378]
[1748000294277,3.78382249,2642.9,2642.5,29.029]
[1748000294671,0.55,2643.2,2642.5,29.029]
[1748000294979,3.78386559,2642.8,2642.6,17.688]
[1748000295184,3.78400877,2642.7,2642.6,17.688]
[1748000295881,1.93458656,2642.8,2642.0,16.334]
[1748000296056,3.78407178,2642.7,2642.1,29.028]
[1748000296259,3.78415197,2642.6,2642.1,32.81279805]
[1748000296446,3.78431523,2642.5,2642.1,32.81284804]
[1748000296643,3.78422237,2642.6,2642.1,32.81284804]
[1748000296843,3.7843202,2642.5,2642.1,32.81284804]
[1748000297147,3.7844833,2642.4,2642.2,29.028]
[1748000297342,3.78431404,2642.5,2642.2,17.688]
[1748000297546,3.78431404,2642.5,2642.2,29.028]
[1748000297941,3.7844616,2642.4,2642.2,29.028]
[1748000298140,3.78480699,2642.2,2642.0,16.334]
[1748000298401,0.55,2642.3,2642.1,17.687]
[1748000298603,0.55,2642.7,2642.1,17.687]
[1748000298769,3.78435816,2642.5,2642.1,17.687]
[1748000299501,3.7843656,2642.5,2642.1,17.687]
[1748000299712,4.3343656,2642.5,2642.1,17.687]
[1748000300207,3.78444878,2642.4,2642.2,17.687]
[1748000300406,0.81184332,2642.5,2642.2,17.687]
[1748000300574,3.78418337,2642.6,2642.2,17.687]
[1748000300776,4.33405519,2642.7,2642.2,21.47165108]
[1748000300999,3.78417692,2642.6,2642.2,17.687]
[1748000301307,3.78432736,2642.5,2642.2,17.687]
[1748000301606,3.78424456,2642.6,2642.2,17.687]
[1748000301765,3.78430332,2642.5,2642.2,17.687]
[1748000302201,4.33407313,2642.7,2642.2,17.687]
[1748000302508,3.78436935,2642.5,2642.2,17.687]
[1748000302910,4.37330185,2642.6,2642.2,17.687]
[1748000303094,3.78431219,2642.5,2642.2,17.687]
[1748000303412,4.37326307,2642.6,2642.2,17.687]
[1748000303619,3.78436494,2642.5,2642.2,17.687]
[1748000304514,4.2250327,2642.5,2641.2,8.0]
[1748000304713,3.7843724,2642.5,2641.4,3.78587112]
[1748000304916,0.58902731,2642.6,2642.2,3.78462221]
[1748000305122,13.34020794,2642.8,2642.3,17.608]
[1748000305520,3.78401797,2642.7,2642.3,17.608]
[1748000305686,13.34011981,2642.8,2642.3,17.608]
[1748000306018,3.78407436,2642.7,2642.3,17.608]
[1748000306319,13.34014828,2642.8,2642.3,21.3925704]
[1748000306522,3.78379848,2642.9,2642.4,3.78443838]
[1748000306683,4.33358959,2643.0,2642.5,3.78427258]
[1748000306888,5.29639681,2643.0,2642.5,3.78427258]
[1748000307098,5.29451864,2643.1,2642.6,3.78412435]
[1748000307394,3.78359333,2643.0,2642.5,3.78421391]
[1748000307783,1.511,2643.1,2642.6,3.7841351]
[1748000307983,5.28505535,2643.3,2642.7,3.78397877]
[1748000308225,3.78358939,2643.0,2642.4,3.78443838]
[1748000308521,4.33337955,2643.2,2642.3,17.608]
[1748000308820,3.78335748,2643.2,2642.7,3.78391033]
[1748000309028,6.32868047,2643.3,2642.8,15.12382272]
[1748000309326,6.32868047,2643.3,2642.9,17.608]
[1748000310121,3.78357926,2643.0,2642.9,17.608]
[1748000310311,3.78378095,2642.9,2642.4,3.78441936]
[1748000310500,3.78381161,2642.9,2642.5,28.947]
[1748000310701,0.75670402,2643.0,2642.1,16.331]
[1748000311002,3.78366137,2643.0,2642.6,11.34]
[1748000311197,3.78337533,2643.2,2642.6,3.78414593]
[1748000311519,1.5936,2643.3,2642.7,17.607]
[1748000311687,3.78300221,2643.5,2642.8,3.78376297]
[1748000311887,3.78301721,2643.4,2642.9,3.78361442]
[1748000312329,0.55,2643.5,2643.1,3.78331182]
[1748000312527,0.75603,2643.5,2643.1,3.78331182]
[1748000312724,0.20603,2643.5,2643.1,3.78331182]
[1748000313020,0.20603,2643.5,2643.1,3.78334931]
[1748000313202,3.78265526,2643.7,2643.2,3.78328534]
[1748000313395,3.78265526,2643.7,2643.3,17.607]
[1748000313625,1.5705,2644.0,2643.4,3.7934542]
[1748000313826,1.5705,2644.4,2643.4,0.01044747]
[1748000314136,5.6216552,2644.6,2643.5,3.78286362]
[1748000314137,1.84028694,2644.6,2643.5,3.78286362]
[1748000314346,1.84028694,2644.6,2644.5,3.78143316]
[1748000314486,1.84028694,2644.6,2644.5,49.0678391]
[1748000314833,1.84028694,2644.6,2644.5,49.05743316]
[1748000315487,1.84028694,2644.6,2644.5,33.936]
[1748000315690,1.84028694,2644.6,2644.5,49.04943316]
[1748000316624,1.84028694,2644.6,2644.5,16.329]
[1748000316926,1.84028694,2644.6,2644.5,45.268]
[1748000317599,3.78078816,2645.0,2644.5,45.268]
[1748000318003,0.75612358,2645.0,2644.5,16.329]
[1748000318197,3.78103235,2644.8,2644.6,28.936]
[1748000318591,3.7811472,2644.7,2644.5,16.329]
[1748000318787,3.78129017,2644.6,2644.5,16.329]
[1748000319100,3.78129017,2644.6,2644.5,33.928]
[1748000319926,3.78090043,2644.9,2644.5,33.928]
[1748000320839,3.78101971,2644.8,2644.5,33.928]
[1748000321134,3.78094775,2644.9,2644.5,33.928]
[1748000321627,3.78103348,2644.8,2644.5,33.928]
[1748000321833,3.78107658,2644.8,2644.6,11.333]
[1748000322156,3.78094436,2644.9,2644.6,11.333]
[1748000322353,3.7811472,2644.7,2644.6,11.333]
[1748000322672,3.78108886,2644.8,2644.5,16.329]
[1748000322829,3.78090775,2644.9,2644.6,28.93]
[1748000323337,3.78102004,2644.8,2644.6,28.93]
[1748000323541,3.780919,2644.9,2644.6,28.93]
[1748000324345,1.5581,2645.0,2644.6,28.93]
[1748000324512,4.33089169,2644.9,2644.6,28.93]
[1748000324713,3.78089654,2644.9,2644.6,28.93]
[1748000325035,3.78101505,2644.8,2644.6,28.93]
[1748000325409,5.33882688,2645.0,2644.6,28.93]
[1748000325752,3.78093242,2644.9,2644.6,28.93]
[1748000326138,3.78102917,2644.8,2644.6,28.93]
[1748000326337,3.78129017,2644.6,2644.5,16.329]
[1748000326523,3.78118794,2644.7,2644.5,45.257]
[1748000326723,3.78094569,2644.9,2644.5,45.257]
[1748000328046,3.78078171,2645.0,2644.5,49.03835895]
[1748000328247,5.85558169,2645.2,2644.5,45.257]
[1748000328490,6.44113986,2645.2,2644.5,49.03834202]
[1748000328642,4.33048169,2645.2,2644.7,3.78108283]
[1748000329153,3.78064075,2645.1,2644.6,3.78124095]
[1748000329354,3.78051388,2645.2,2644.7,3.78112562]
[1748000329758,3.78051388,2645.2,2644.6,3.78124095]
[1748000329759,3.78058572,2645.1,2644.6,3.78129017]
[1748000329967,3.78058572,2645.1,2644.6,3.78122077]
[1748000330175,3.78091576,2644.9,2644.5,16.329]
[1748000330381,3.78064799,2645.1,2644.7,28.927]
[1748000330960,3.78077996,2645.0,2644.7,28.927]
[1748000331273,3.7810217,2644.8,2644.6,8.0]
[1748000331566,3.78092329,2644.9,2644.7,28.924]
[1748000331777,3.78100423,2644.8,2644.6,8.0]
[1748000332076,3.78113674,2644.8,2644.7,28.924]
[1748000332428,4.33082411,2645.0,2644.7,28.924]
[1748000332627,3.78082411,2645.0,2644.7,28.924]
[1748000332824,3.78065829,2645.1,2644.7,28.924]
[1748000333229,1.5707,2645.5,2644.8,8.0]
[1748000333431,1.5707,2645.5,2644.8,11.78095624]
[1748000333679,3.78017597,2645.4,2644.9,3.78073316]
[1748000333880,1.5707,2645.5,2645.0,11.78064245]
[1748000334079,3.78012123,2645.5,2645.0,3.78065728]
[1748000334381,3.77857547,2646.5,2645.1,0.37806573]
[1748000334538,1.5444,2646.0,2645.1,4.15856178]
[1748000334735,3.77979644,2645.7,2645.2,3.78040177]
[1748000335065,3.77974451,2645.7,2645.3,17.498]
[1748000335379,3.77974451,2645.7,2645.4,11.331]
[1748000335380,3.77973453,2645.7,2645.4,11.331]
[1748000335575,3.77995334,2645.6,2645.5,16.316]
[1748000335776,3.77978504,2645.7,2645.5,16.316]
[1748000335951,3.779629,2645.8,2645.5,16.316]
[1748000336131,3.77982677,2645.7,2645.5,16.316]
[1748000336867,3.77951205,2645.9,2645.5,17.89415555]
[1748000337232,3.77934455,2646.0,2645.5,21.67406378]
[1748000337427,1.5377,2646.2,2645.8,3.77950903]
[1748000337428,0.55,2646.2,2645.8,3.77950903]
[1748000337631,1.6291,2647.1,2646.0,8.0]
[1748000337873,1.6291,2647.1,2646.2,8.0]
[1748000338098,1.6291,2647.1,2646.6,8.0]
[1748000338268,5.40695422,2647.1,2646.7,33.82132762]
[1748000338454,5.617732,2647.3,2646.7,33.811]
[1748000338775,3.77771754,2647.2,2646.8,11.33]
[1748000338950,3.7775763,2647.2,2646.8,11.33]
[1748000339288,3.77795775,2647.0,2646.8,11.33]
[1748000340149,3.77779133,2647.1,2646.8,11.33]
[1748000340469,3.77814719,2646.8,2646.7,33.811]
[1748000340775,3.77791808,2647.0,2646.8,11.327]
[1748000341077,0.55,2647.3,2646.8,11.327]
[1748000341280,3.77776912,2647.1,2646.8,11.327]
[1748000341575,3.77814719,2646.8,2646.7,16.315]
[1748000341767,3.77807492,2646.9,2646.7,45.134]
[1748000341937,3.77814719,2646.8,2646.7,45.134]
[1748000342137,3.7779357,2647.0,2646.7,45.134]
[1748000342638,3.77792855,2647.0,2646.7,45.134]
[1748000343075,3.77793693,2647.0,2646.7,45.134]
[1748000343582,1.5939,2647.4,2646.7,45.134]
[1748000343583,1.5939,2647.4,2646.7,46.71215555]
[1748000343756,3.77743361,2647.3,2646.7,46.71215555]
[1748000343944,3.77767392,2647.2,2646.7,46.71215555]
[1748000344298,3.7776671,2647.2,2646.7,46.71215555]
[1748000344459,3.7775763,2647.2,2646.7,50.49042606]
[1748000344655,3.77772245,2647.1,2646.8,28.814]
[1748000344973,3.77800445,2646.9,2646.8,28.814]
[1748000345289,3.77810479,2646.9,2646.8,28.812]
[1748000346013,5.87214719,2646.8,2646.7,16.315]
[1748000346144,5.87214719,2646.8,2646.6,17.487]
[1748000346145,4.32828994,2646.7,2646.6,17.487]
[1748000346778,3.77900385,2646.2,2646.1,27.629]
[1748000346980,1.544,2646.5,2646.1,45.116]
[1748000347165,3.77900385,2646.2,2646.1,45.116]
[1748000347368,1.544,2646.5,2646.1,16.306]
[1748000347555,3.77833889,2646.7,2646.1,45.116]
[1748000347866,3.77835893,2646.7,2646.2,3.77899286]
[1748000348380,3.77851112,2646.6,2646.1,48.89507636]
[1748000348953,3.77878278,2646.4,2646.2,11.323]
[1748000349158,3.77897955,2646.3,2646.1,16.306]
[1748000349358,4.32897955,2646.3,2646.2,17.486]
[1748000349593,3.77900385,2646.2,2646.1,16.306]
[1748000349759,3.77900385,2646.2,2646.1,33.792]
[1748000350099,3.77900385,2646.2,2646.1,16.306]
[1748000350265,3.77900385,2646.2,2644.7,3.78113726]
[1748000350266,3.7798609,2645.6,2644.8,3.78095159]
[1748000350469,3.77978834,2645.7,2645.2,3.7803866]
[1748000350670,8.55,2646.2,2645.3,17.86403866]
[1748000350893,0.55,2646.2,2645.3,17.486]
[1748000351193,0.55,2646.2,2644.9,3.780787]
[1748000351194,4.32943232,2645.9,2644.9,3.780787]
[1748000351396,3.77997174,2645.6,2645.0,32.59171798]
[1748000351593,3.78000924,2645.5,2645.1,17.488]
[1748000351795,3.7799318,2645.6,2645.1,17.488]
[1748000352001,3.78026821,2645.4,2645.1,17.488]
[1748000352159,3.78006963,2645.5,2645.1,17.488]
[1748000352361,0.55,2645.4,2644.6,0.4928464]
[1748000352597,1.5849,2645.9,2644.7,28.82238643]
[1748000352903,3.77959359,2645.8,2645.3,3.7802322]
[1748000353199,3.77959715,2645.8,2645.4,17.488]
[1748000353624,1.5849,2645.9,2645.5,0.01037189]
[1748000353782,3.77943242,2645.9,2645.5,11.324]
[1748000353990,3.7793447,2646.0,2645.5,11.324]
[1748000354284,3.7795074,2645.9,2645.5,11.324]
[1748000355119,3.77958816,2645.8,2645.5,11.324]
[1748000355480,3.77956336,2645.9,2645.4,17.488]
[1748000355680,3.77943232,2645.9,2645.6,11.325]
[1748000355979,3.77949913,2645.9,2645.6,11.325]
[1748000356431,0.5914201,2646.0,2645.6,11.325]
[1748000356628,4.37073727,2646.0,2645.6,11.325]
[1748000356797,3.77952602,2645.9,2645.6,11.325]
[1748000356992,3.77943232,2645.9,2645.6,11.325]
[1748000357197,3.77968218,2645.8,2645.6,11.325]
[1748000358329,3.77963542,2645.8,2645.6,11.325]
[1748000358665,4.27159297,2645.9,2645.6,11.325]
[1748000359326,3.77950773,2645.9,2645.6,11.325]
[1748000359535,4.32917237,2646.1,2645.7,0.0103682]
[1748000359704,3.77872526,2646.4,2645.9,3.77935495]
[1748000359904,5.42247347,2646.6,2646.0,17.489]
[1748000360237,3.77872384,2646.4,2646.0,17.489]
[1748000360443,3.77867095,2646.5,2646.0,21.26827344]
[1748000360624,5.42251243,2646.6,2646.1,3.77913816]
[1748000360830,3.77865815,2646.5,2646.2,11.325]
[1748000361035,3.77876115,2646.4,2646.2,11.325]
[1748000361232,3.77879608,2646.4,2646.2,11.325]
[1748000361423,4.15667709,2646.4,2646.3,17.489]
[1748000361626,3.77879748,2646.4,2646.3,17.489]
[1748000363412,3.77895846,2646.3,2646.1,11.325]
[1748000363647,4.32895846,2646.3,2646.2,17.489]
[1748000364471,0.55,2646.3,2646.2,17.489]
[1748000364619,3.77862743,2646.5,2646.2,17.489]
[1748000364821,3.77872579,2646.4,2646.2,17.489]
[1748000365756,3.77886105,2646.3,2646.2,17.489]
[1748000366065,3.77878224,2646.4,2646.2,17.489]
[1748000366434,3.77886105,2646.3,2646.2,17.489]
[1748000366773,5.63313119,2646.6,2646.2,17.489]
[1748000367067,0.55,2647.0,2646.2,17.489]
[1748000367374,0.55,2647.0,2645.6,8.0]
[1748000367375,1.5759,2646.6,2645.6,8.0]
[1748000367561,3.77894662,2646.3,2645.8,3.77950712]
[1748000367727,0.55,2646.5,2645.7,21.17060736]
[1748000367930,3.77871825,2646.4,2645.8,15.10343343]
[1748000368131,3.77871825,2646.4,2645.9,3.77940547]
[1748000368347,3.77892319,2646.3,2645.9,8.0]
[1748000369673,4.32865798,2646.5,2646.0,3.77928924]
[1748000369970,3.77893664,2646.3,2645.9,8.0]
[1748000370268,3.77878833,2646.4,2646.1,8.0]
[1748000370567,3.77887103,2646.3,2646.1,8.0]
[1748000370765,3.77900385,2646.2,2646.1,8.0]
[1748000371684,3.7789357,2646.3,2646.1,8.0]
[1748000371886,3.7787242,2646.4,2646.1,8.0]
[1748000371887,3.77876437,2646.4,2646.1,8.0]
[1748000372091,5.35433858,2646.6,2646.1,8.0]
[1748000372390,3.77863464,2646.5,2646.1,8.0]
[1748000372583,3.77897072,2646.3,2646.1,8.0]
[1748000372748,4.32900385,2646.2,2646.1,8.0]
[1748000372953,4.32900385,2646.2,2646.1,25.391]
[1748000373791,9.77874782,2646.4,2646.1,25.391]
[1748000373992,3.77887492,2646.3,2646.1,25.391]
[1748000374320,6.0,2646.4,2646.1,25.391]
[1748000376111,9.77873983,2646.4,2646.1,25.391]
[1748000376314,3.77887555,2646.3,2646.1,25.391]
[1748000376481,3.77893792,2646.3,2646.1,25.391]
[1748000376820,6.0,2646.4,2646.2,11.324]
[1748000377788,3.77860686,2646.5,2646.2,11.324]
[1748000378217,3.77843276,2646.6,2646.3,8.0]
[1748000378400,5.40381861,2646.8,2646.3,8.0]
[1748000378570,4.32821994,2646.8,2646.4,3.7787052]
[1748000379264,0.55,2646.8,2646.4,3.7787052]
[1748000379463,4.32817374,2646.8,2646.3,11.77880182]
[1748000379688,3.77860241,2646.5,2646.3,8.0]
[1748000379904,0.55,2646.6,2646.3,8.0]
[1748000380106,0.55,2646.9,2646.3,8.0]
[1748000380296,0.55,2646.6,2646.3,8.0]
[1748000380690,3.77835412,2646.7,2646.3,8.0]
[1748000380691,0.55,2646.7,2646.3,11.77882695]
[1748000381701,3.77831317,2646.7,2646.3,11.77882695]
[1748000381907,3.77831317,2646.7,2646.2,11.324]
[1748000382083,3.77831317,2646.7,2646.3,3.77878247]
[1748000382272,4.32822702,2646.8,2646.4,3.77871568]
[1748000382480,4.32822702,2646.8,2646.3,3.77877977]
[1748000382685,4.37096261,2646.9,2646.4,3.77870108]
[1748000382887,3.77815531,2646.8,2646.3,3.77877558]
[1748000383786,3.77836705,2646.7,2646.2,15.10294367]
[1748000383985,3.77836705,2646.7,2646.2,11.324]
[1748000384383,4.37099877,2646.9,2646.2,11.324]
[1748000384587,4.37099877,2646.9,2646.2,15.10291611]
[1748000384588,3.77837454,2646.7,2646.2,15.10291611]
[1748000384822,3.77837454,2646.7,2646.3,3.77882314]
[1748000385189,3.77837454,2646.7,2646.2,15.10292563]
[1748000385518,3.77837454,2646.7,2646.1,17.391]
[1748000385719,3.77814719,2646.8,2646.3,3.77883646]
[1748000385922,0.97502864,2646.8,2646.2,11.323]
[1748000386124,0.97502864,2646.8,2646.1,17.391]
[1748000386125,0.55,2646.8,2646.1,17.391]
[1748000386322,3.77849097,2646.6,2646.2,15.10194639]
[1748000386487,3.77837404,2646.7,2646.2,15.10194639]
[1748000387638,1.6337,2647.2,2646.2,11.323]
[1748000387843,11.92028694,2648.0,2646.8,3.77803859]
[1748000387844,1.6337,2647.8,2646.8,3.77803859]
[1748000388009,1.6337,2647.8,2646.9,16.306]
[1748000388322,1.5499,2647.3,2647.0,28.713]
[1748000388525,2.08261225,2647.3,2647.0,28.713]
[1748000388752,2.08261225,2647.3,2647.1,17.39]
[1748000389102,1.5499,2647.3,2647.1,17.39]
[1748000390444,0.55,2647.2,2646.9,16.306]
[1748000390631,0.55,2647.2,2647.0,17.388]
[1748000391529,1.5499,2647.3,2647.0,17.388]
[1748000391841,1.5499,2647.3,2647.1,3.77769204]
[1748000392140,0.55,2647.4,2647.2,3.77756684]
[1748000392345,1.598,2647.5,2647.3,3.77743361]
[1748000392541,1.5511,2647.8,2647.4,3.77729092]
[1748000393044,2.26789281,2647.8,2647.3,11.322]
[1748000393249,1.5511,2647.8,2647.5,3.77707077]
[1748000393403,1.84028694,2648.0,2647.7,3.77675338]
[1748000393609,1.84028694,2648.0,2647.6,17.387]
[1748000393847,1.84028694,2648.0,2647.6,21.16393539]
[1748000394049,1.84028694,2648.0,2647.6,21.16395132]
[1748000394244,3.77636065,2648.1,2647.6,21.16395132]
[1748000394448,0.56166476,2647.9,2647.6,21.16395132]
[1748000394620,1.6623,2648.2,2647.6,17.387]
[1748000394950,1.5004,2648.5,2648.1,3.77629243]
[1748000395247,1.5004,2648.5,2648.2,17.29]
[1748000395446,1.5004,2648.5,2648.3,17.29]
[1748000395747,5.27612741,2648.5,2648.3,17.29]
[1748000396044,4.48751216,2648.4,2648.0,11.321]
[1748000396260,4.48751216,2648.4,2648.1,17.29]
[1748000396261,0.71164144,2648.4,2648.1,17.29]
[1748000396545,0.55,2648.3,2648.1,17.29]
[1748000397146,0.55,2648.4,2648.1,17.29]
[1748000398271,0.55,2648.4,2648.2,17.287]
[1748000398648,0.55,2648.4,2648.3,17.287]
[1748000399252,4.32586467,2648.4,2648.3,17.287]
[1748000399573,1.51018656,2648.4,2648.3,17.287]
[1748000399736,5.28605123,2648.4,2648.3,17.287]
[1748000400077,3.77643504,2648.0,2647.9,16.303]
[1748000400275,2.1118,2648.0,2646.6,1.20683742]
[1748000400474,3.77630914,2648.1,2646.7,17.286]
[1748000400475,0.55,2647.2,2646.7,17.286]
[1748000400647,0.55,2647.2,2646.8,3.7780489]
[1748000400853,0.55,2647.3,2647.0,3.77785481]
[1748000401066,0.55,2647.3,2647.0,8.0]
[1748000401380,4.32751619,2647.3,2647.0,8.0]
[1748000401548,1.5637,2647.6,2646.8,3.7780257]
[1748000401549,4.37436829,2647.5,2647.1,17.286]
[1748000401749,0.55,2647.1,2646.6,1.20683742]
[1748000401953,3.77797387,2647.0,2646.7,17.286]
[1748000402151,4.32800445,2646.9,2646.4,20.07765082]
[1748000402368,0.55,2646.8,2646.5,36.605]
[1748000402571,0.55,2646.8,2646.5,8.0]
[1748000402766,0.55,2646.8,2646.7,8.0]
[1748000403080,4.32772866,2647.1,2646.7,8.0]
[1748000403263,1.5637,2647.2,2646.7,8.43490473]
[1748000403470,1.5637,2647.2,2646.7,8.0]
[1748000403664,1.5637,2647.2,2646.8,3.77803789]
[1748000403840,1.5637,2647.2,2646.7,8.0]
[1748000403841,1.5637,2647.2,2646.7,11.77826146]
[1748000404184,1.5637,2647.2,2646.7,11.77821741]
[1748000404486,5.3412809,2647.2,2646.7,11.77821741]
[1748000404685,0.55,2647.1,2646.8,17.286]
[1748000405048,0.55,2647.1,2646.8,21.06413441]
[1748000405252,1.6109,2647.7,2646.8,21.06414677]
[1748000405550,0.55,2647.4,2647.0,3.77779619]
[1748000405948,0.55,2647.4,2646.8,21.06404962]
[1748000405949,0.55,2647.6,2646.9,8.0]
[1748000406162,3.77714825,2647.5,2647.0,3.77774724]
[1748000406376,3.77714825,2647.5,2647.1,3.77771415]
[1748000406549,0.55,2647.4,2647.0,3.77779871]
[1748000406759,0.55,2647.4,2647.1,3.77770455]
[1748000406960,0.55,2647.5,2647.4,3.77729092]
[1748000407184,0.55,2647.6,2647.5,3.77707252]
[1748000407350,0.55,2647.6,2647.4,17.287]
[1748000407552,0.55,2647.8,2647.4,21.06422087]
[1748000407765,0.55,2647.8,2647.4,21.0642897]
[1748000408375,3.77674366,2647.8,2647.4,17.287]
[1748000409086,4.32691281,2647.7,2647.4,17.287]
[1748000409388,0.55,2647.7,2647.4,28.606]
[1748000409885,3.77701202,2647.6,2647.1,3.77771901]